Cogmind - Beta 17 @@@ ROGUE MODE // 2026.07.09 @ 13:44:39 Player: flowerfeast Result: Destroyed by S-10 Pest with Light Assault Rifle Performance ------------- Evolutions (0) 0 Regions Visited (2) 400 Robots Destroyed (8) 40 Value Destroyed (138) 138 Prototype IDs (0) 0 Alien Tech Used (0) 0 Bonus (0) 0 TOTAL SCORE: 578 Bonus ------- None Cogmind --------- Core Integrity 0/250 Matter 258/300 Energy 75/100 System Corruption 0% Temperature Cool (0) Movement Walking (120) Location -10/Mines Parts ------- > --- POWER (1) -------- (None) > --- PROPULSION (2) --- Aluminum Leg Aluminum Leg > --- UTILITY (2) ------ Small Storage Unit Utility Shielding > --- WEAPON (2) ------- Mace Mace > --- INVENTORY (8) ---- Light Ion Engine Aluminum Leg Improved Aluminum Leg Improved Aluminum Leg Light EM Pulse Cannon Mace Peak State ------------ > --- POWER ------------ Ion Engine > --- PROPULSION ------- Improved Aluminum Leg Improved Aluminum Leg > --- UTILITY ---------- Small Storage Unit Improved Terrain Scanner > --- WEAPON ----------- Mace Mace > --- INVENTORY -------- Light Ion Engine Aluminum Leg Aluminum Leg Improved Aluminum Leg Improved Aluminum Leg Light EM Pulse Cannon Mace [Rating: 14] Favorites ----------- Power Ion Engine Engine Ion Engine Propulsion Improved Aluminum Leg Leg Improved Aluminum Leg Utility Small Storage Unit Device Improved Terrain Scanner Storage Small Storage Unit Protection Utility Shielding Weapon Mace Energy Gun EM Pulse Gun Ballistic Gun Light Assault Rifle Impact Weapon Mace Build | -11 -10 -10 ------- Run | Yrd Mat Min Slots Evolved . | . . . Power . | . . . Propulsion . | . . . Utility . | . . . Weapon . | . . . Parts Attached 13 | 7 6 . Power 1 | 1 . . Engine 1 | 1 . . Core . | . . . Reactor . | . . . Propulsion 4 | 2 2 . Treads . | . . . Leg 4 | 2 2 . Wheel . | . . . Hover . | . . . Flight . | . . . Utility 3 | 2 1 . Device 1 | 1 . . Storage 1 | 1 . . Processor . | . . . Hackware . | . . . Protection 1 | . 1 . Artifact . | . . . Weapon 5 | 2 3 . Energy Gun 1 | 1 . . Energy Cannon . | . . . Ballistic Gun 1 | 1 . . Ballistic Cannon . | . . . Launcher . | . . . Special Weapon . | . . . Impact Weapon 3 | . 3 . Slashing Weapon . | . . . Piercing Weapon . | . . . Special Melee Weapon . | . . . Unidentified Prototypes . | . . . Parts Lost 3 | . . 3 Power 1 | . . 1 Propulsion 2 | . . 2 Utility . | . . . Weapon . | . . . Highest Loss Streak 3 | . . 3 To Critical Strikes . | . . . Average Backups 6 | 1 6 7 Power . | . 1 1 Propulsion 3 | . 3 4 Utility . | . . . Weapon 1 | 1 1 2 Tool/Special . | . . . Unused Backups 6 | . 1 5 Power 1 | . . 1 Propulsion 3 | . . 3 Utility . | . . . Weapon 2 | . 1 1 Tool/Special . | . . . Average Slot Usage (%) 98 | . 99 96 Engine 13 | . 14 12 Leg 27 | . 28 26 Device 4 | . 6 . Storage 14 | . 14 14 Protection 9 | . 7 14 Ballistic Gun 1 | . 2 . Impact Weapon 25 | . 24 28 Peak Build Rating 14 | 9 14 12 Average Rating 11 | 4 12 11 On Entrance 7 | . 9 12 Avg Prop Armor Cover (%) . | . . . Naked Turns . | . . . Heaviest Build 15 | 14 15 15 Greatest Support 26 | 20 26 26 Greatest Overweight (x) 3 | . . 3 Average Overweight (x) . | . . . Largest Inventory Capacity 8 | 8 8 8 Average Capacity 7 | 7 8 8 Most Carried 8 | 5 8 8 Average Carried 6 | 2 6 7 Final Capacity 8 | 8 8 8 Final Carried 7 | 2 7 6 Class Distribution -------------------- 100% | Mutant Dominant Class ---------------- Mutant | -10/Materials Mutant | -10/Mines Resources | -11 -10 -10 ----------- Run | Yrd Mat Min Matter Collected 299 | 172 57 70 Remotely . | . . . Salvage Created 155 | 30 55 70 Parts 9 | 3 4 2 Haulers Intercepted . | . . . Recyclers Shooed . | . . . Parts Field Recycled . | . . . Retrieved Matter . | . . . Parts Self-Destructed . | . . . Prevented . | . . . Parts Restored . | . . . Kills | -11 -10 -10 ------- Run | Yrd Mat Min Combat Hostiles Destroyed 7 | . 5 2 Melee 5 | . 4 1 Classes Destroyed 3 | 1 1 1 Tunneler 1 | 1 . . Swarmer 5 | . 5 . Grunt 2 | . . 2 Best Kill Streak 3 | 1 3 2 Combat Bots Only 3 | . 3 2 Max Kills in Single Turn 1 | 1 1 1 Gunslinging . | . . . Exploded . | . . . Melee 1 | . 1 1 Uniques/NPCs Destroyed . | . . . Combat | -11 -10 -10 -------- Run | Yrd Mat Min Hostile Shots Fired 109 | . 54 55 Missed 25 | . 12 13 Hits 84 | . 42 42 Projectile 84 | . 42 42 Critical Strikes 4 | . 3 1 Actively Blocked 1 | . . 1 Damage Taken 730 | . 351 379 Core 253 | . 113 140 Absorbed by Shields . | . . . Redirected to Shielding 19 | . 9 10 Core Remaining (%) 100 | 100 . . Volleys Fired 6 | 6 . . Largest 2 | 2 . . Hottest 60 | 60 . . Shots Fired 12 | 12 . . Gun 12 | 12 . . Cannon . | . . . Launcher . | . . . Special . | . . . Kinetic 6 | 6 . . Thermal . | . . . Explosive . | . . . Electromagnetic 6 | 6 . . Robot Hit Streak 3 | 3 . . Robot Miss Streak 3 | 3 . . Penetration Max . | . . . Secondary Targets . | . . . Shots Hit Robots 25 | 7 11 7 Core Hits 6 | 2 3 1 Critical Kills 1 | . 1 . Critical Parts Destroyed . | . . . Critical Strikes 1 | . 1 . Smash 1 | . 1 . Melee Attacks 34 | . 20 14 Impact 34 | . 20 14 Slashing . | . . . Piercing . | . . . Sneak Attacks . | . . . Combat Hostiles . | . . . Follow-up Attacks 6 | . 4 2 Damage Inflicted 660 | 82 376 202 Guns 82 | 82 . . Cannons . | . . . Explosions . | . . . Melee 578 | . 376 202 Ramming . | . . . Kinetic 26 | 26 . . Thermal . | . . . Explosive . | . . . Electromagnetic 56 | 56 . . Impact 578 | . 376 202 Slashing . | . . . Piercing . | . . . Highest Corruption . | . . . Average Corruption . | . . . Corruption Purged . | . . . Corruption Blocked . | . . . Overload Shots . | . . . Overflow Damage 109 | . 96 13 Projectiles . | . . . Explosions . | . . . Melee 109 | . 96 13 Knockbacks . | . . . Impact . | . . . Kinetic . | . . . Secondary . | . . . Self-Inflicted Damage . | . . . Shots . | . . . Rammed . | . . . Targets Rammed . | . . . Kicked . | . . . Crushed . | . . . Highest Temperature 40 | 40 . . Average Temperature 16 | 16 . . Received Heat Transfer 48 | . . 48 Siege Activations . | . . . Martial Activations . | . . . Shielding Activations . | . . . Robots Disrupted . | . . . Combat Hostiles . | . . . Robots Corrupted 2 | . 1 1 Combat Hostiles 2 | . 1 1 Parts Fried 5 | . 4 1 Impact Corruptions 5 | . 4 1 Robots Melted . | . . . Combat Hostiles . | . . . Parts Melted . | . . . Heat Transferred . | . . . Parts Sabotaged . | . . . Parts Stolen . | . . . Parts Stripped . | . . . Power Chain Reactions . | . . . Alert | -11 -10 -10 ------- Run | Yrd Mat Min Maximum Alert Level . | . . . Low Security (%) 100 | 100 100 100 Level 1 . | . . . Level 2 . | . . . Level 3 . | . . . Level 4 . | . . . Level 5 . | . . . High Security . | . . . Max Security . | . . . Peak Influence 135 | 5 135 88 Initial 48 | . . 48 Average 28 | . 22 59 Influence Increases 220 | 5 165 50 Destroy 0b10 Robot/C 140 | . 100 40 Destroy 0b10 Robot/NC 5 | 5 . . Destroy Leader 30 | . 20 10 Lose Combat Pursuer 45 | . 45 . Influence Decreases 212 | 5 40 167 Entered New Map 77 | . . 77 Time Decay 105 | 5 40 60 Lost Part 30 | . . 30 Squads Dispatched . | . . . Investigation . | . . . Extermination . | . . . Reinforcement . | . . . Assault . | . . . Garrison . | . . . Intercept . | . . . Searches Triggered . | . . . Construction Impeded . | . . . Haulers Reinforced . | . . . Active Scanning Responses . | . . . Cargo Convoy Interrupts . | . . . Stealth | -11 -10 -10 --------- Run | Yrd Mat Min Distress Signals 1 | . 1 . Communications Jammed . | . . . Distress Signals . | . . . Times Spotted 16 | . 11 5 Peak Tracking Total 8 | . 8 3 Tactical Retreats 1 | . 1 . Traps | -11 -10 -10 ------- Run | Yrd Mat Min Traps Triggered 1 | . 1 . Indirectly . | . . . Trap Hack Attempts . | . . . Triggered . | . . . Disarmed . | . . . Reprogrammed . | . . . Reused . | . . . Traps Extracted . | . . . Installed . | . . . Triggered . | . . . Machines | -11 -10 -10 ---------- Run | Yrd Mat Min Machines Disabled . | . . . Max in Single Turn . | . . . Machines Repaired . | . . . Machines Dismantled . | . . . Machines Sabotaged . | . . . Overloaded Fab Kills . | . . . Hacking | -11 -10 -10 --------- Run | Yrd Mat Min Machines Accessed . | . . . Terminals . | . . . Fabricators . | . . . Repair Stations . | . . . Recycling Units . | . . . Scanalyzers . | . . . Garrison Access . | . . . Total Hacks . | . . . Successful . | . . . Failed . | . . . Catastrophic . | . . . Database Lockouts . | . . . Manual . | . . . Terminals . | . . . Fabricators . | . . . Repair Stations . | . . . Recycling Units . | . . . Scanalyzers . | . . . Garrison Access . | . . . Terminal Hacks . | . . . Fabricator Hacks . | . . . Repair Station Hacks . | . . . Recycling Unit Hacks . | . . . Scanalyzer . | . . . Garrison Access Hacks . | . . . Unauthorized Hacks . | . . . Terminals . | . . . Fabricators . | . . . Repair Stations . | . . . Recycling Units . | . . . Scanalyzers . | . . . Garrison Access . | . . . Data Cores Recovered . | . . . Used . | . . . Hacking Detections . | . . . Full Trace Events . | . . . Feedback Events . | . . . Feedback Blocked . | . . . Robot Schematics Acquired . | . . . Robots Built . | . . . Authchips . | . . . Time . | . . . Total Robot Build Rating . | . . . Part Schematics Acquired . | . . . Parts Built . | . . . Authchips . | . . . Time . | . . . Total Part Build Rating . | . . . Part Studies Acquired . | . . . Parts Repaired . | . . . Time . | . . . Parts Recycled . | . . . Recycled Matter . | . . . Retrieved Matter . | . . . Retrieved Components . | . . . Parts Scanalyzed . | . . . Part Schematics Acquired . | . . . Parts Damaged . | . . . Bothacking | -11 -10 -10 ------------ Run | Yrd Mat Min Used RIF Installer . | . . . Robots Hacked . | . . . Non-combat . | . . . Combat . | . . . Robot Hacks Applied . | . . . Relay Couplers Released . | . . . Fabnet Peak Effective % . | . . . Robots Rewired . | . . . Allies Hacked . | . . . Hacks Repelled . | . . . Allies | -11 -10 -10 -------- Run | Yrd Mat Min Total Allies . | . . . Largest Group . | . . . Highest-Rated Group . | . . . Highest-Rated Ally . | . . . Total Orders . | . . . Ally Attacks . | . . . Total Damage . | . . . Kills . | . . . Allies Corrupted . | . . . Allies Melted . | . . . Intel | -11 -10 -10 ------- Run | Yrd Mat Min Active Infowar (turns) 187 | 6 181 . Terrain 187 | 6 181 . Robot Analysis Total . | . . . Derelict Logs Recovered . | . . . Drone Launches . | . . . Drone Recoveries . | . . . Exploration | -11 -10 -10 ------------- Run | Yrd Mat Min Turns Passed 599 | 69 397 133 Spaces Moved 392 | 38 275 79 Core 14 | 13 . 1 Treads . | . . . Legs 378 | 25 275 78 Wheels . | . . . Hover . | . . . Flight . | . . . Fastest Speed 50 | 50 120 120 Average Speed 118 | 96 120 121 Slowest Speed 200 | 120 120 200 Overloaded Moves . | . . . Propulsion Burnouts . | . . . Robots Hopped . | . . . Potential Cave-ins . | . . . Cave-ins Triggered . | . . . Exploration Rate (%) 21 | 3 38 24 Regions Visited 2 Branch Regions 1 Pre-discovered Areas . | . . . Known Exits Taken . | . . . Unknown Exits Taken 2 | 1 1 . Scrap Searched . | . . . Spaces Dug . | . . . Terrain Destroyed . | . . . Melee . | . . . Projectile . | . . . AOE . | . . . Terrain Rammed . | . . . Walls Destroyed . | . . . Machines Disabled . | . . . Actions | -11 -10 -10 --------- Run | Yrd Mat Min Total 465 | 59 312 94 Wait 3 | . 3 . Move 390 | 37 274 79 Hop . | . . . Pick Up 19 | 9 9 1 Fast Attach . | . . . Attach 11 | 7 2 2 Detach . | . . . Swap 4 | . 4 . Drop 4 | . 4 . Fire 6 | 6 . . Melee 28 | . 16 12 Ram . | . . . Kick . | . . . Crush . | . . . Escape Stasis . | . . . Rewire . | . . . Trap . | . . . Miscellaneous . | . . . Route ------- -11/Scrapyard -10/Materials -10/Mines History --------- Turn | Location | Event 7 | -11/Scrapyard | Discovered new exit (range 14) 70 | -11/Scrapyard | Entered Materials 203 | -10/Materials | Discovered new exit (range 16) 311 | -10/Materials | Build established: Mutant 467 | -10/Materials | Entered Mines 470 | -10/Mines | Core integrity fell below 50% 593 | -10/Mines | Core integrity fell below 20% 600 | -10/Mines | Destroyed by S-10 Pest with Light Assault Rifle Last Messages --------------- LOCATION=UNKNOWN GOAL=ESCAPE 00478_ G-47 Trooper destroyed. 00483_ K-01 Serf collects debris. 00486_ Destroyed Heat Sink. 00486_ G-34 Mercenary system corrupted by crushing effect. 00487_ G-34 Mercenary system terminally corrupted. 00487_ Ion Engine fried. 00487_ K-01 Serf collects debris. 00489_ Acquired 29 matter. 00491_ Acquired 41 matter. 00491_ K-01 Serf collects debris. 00494_ Acquired Aluminum Leg. 00494_ K-01 Serf collects debris. 00516_ K-01 Serf cleans the Seismic Survey Station. 00580_ Imp. Aluminum Leg destroyed. 00582_ Mace follow-up attack on S-10 Pest. 00583_ Imp. Aluminum Leg destroyed. 00584_ Ion Engine destroyed. 00587_ Mace follow-up attack on S-10 Pest. Map ----- +----------------------------------------------------+ | | | ????????????????????????????????? | | ????????????????????????????????? | | ????????????????????????????????? | | ????????????????????????????????? | | ????????????????????????????????? | | ??????????????????????####??????? | | ?????????????????????## ##?????? | | ?????????????????????# #?????? | | ?????????????????????# #?????? | | ????????????????????## ##?????? | | ???????????####????## ##??????? | | ??????????## ###### #??????## | | ?????????## ## ##????? | | ??????#### #?????# | | ?????## #?????# | | ????## #?????# | | ????# ####### | | ????# ## | | ???## #### ## | | ???# #??# ############ | | ???# #??## #??????????# | | ???## #???# ##??????????## | | ????## ##???# #????????????? | | ?????# ##???? ##????????????? | | ?????#s @ #???? #?????????????? | | ?????# ##???# #?????????????? | | ?????#s s#?????? #??????????????? | | ?????## ??????#???????????????? | | ??????## ??????????????????????? | | ???????# ??????????????????????? | | ??????? ??????????????????????? | | ??????? ?????????????????????? | | ??????? ?????????????????????? | | ??????? ?????????????????????? | | ??????? ?????????????????????? | | ??????? ????????????????????? | | ??????? ## ????????????????????? | | ??????? ??#????????????????????? | | ??????? ???????????????????????? | | ??????? ???????????????????????? | | ????????????????????????????????? | | ????????????????????????????????? | | ????????????????????????????????? | | ????????????????????????????????? | | ????????????????????????????????? | | ????????????????????????????????? | | ????????????????????????????????? | | ????????????????????????????????? | | ????????????????????????????????? | +----------------------------------------------------+ Best States ------------- Heat Dissipation 25 Energy Generation 10 Energy Capacity 250 Matter Stores 278 Matter Capacity 300 Sight Range 16 Terrain Scan Range 16 Terrain Scan Density 10 Utility Shielding 33 Evasion (%) 55 Item Schematics ----------------- None Robot Schematics ------------------ None Fabricated ------------ Nothing Repaired ---------- Nothing Studied --------- None Alien Tech Used ----------------- None Achievements -------------- None Challenges ------------ None Game ------ Seed TargetRecyclingTearclaws Manual? 0 Play Time 00:06:10 Cumulative 10.5 hours Start 2026.07.09 @ 13:39:14 End 2026.07.09 @ 13:44:39 Sessions 1 Manual Loads 0 Difficulty Rogue Special Mode None Game No. 19 Rogue 18 Adventurer 1 Explorer 0 Win Type - Total 0 Types 0/0/0/0/0/0/0/0/0/0 Lore% 15 Gallery% 16 Achievement% 15 Wizard Run 0 Options --------- Layout 0 ASCII 0 Keyboard 0 Movement Mouse Keybinds 0 Fullscreen 2 Font 18/SmallcapsGlow Map View 38x25 Zoom Use 99% Tactical HUD 1 Map Filters NONE Filters NONE Steam 1 RUN: fa5d9f3a-6e9e-40a2-a837-b75de0b52a68